bitfinex/quotes_SOLUSD_20250420
["timestamp","ask_amount","ask_price","bid_price","bid_amount"]
[1745113120156,14.57983251,141.35,141.3,7.5050287]
[1745113121269,14.57983251,141.35,141.29,40.5823912]
[1745113122340,14.58049374,141.34,141.29,40.5823912]
[1745113122542,7.5050287,141.33,141.28,7.5050287]
[1745113122756,7.5050287,141.32,141.27,14.58347097]
[1745113123668,14.58099217,141.33,141.28,7.5050287]
[1745113124465,7.07596347,141.33,141.28,7.5050287]
[1745113124962,7.07596347,141.33,141.28,14.58312936]
[1745113125148,7.5050287,141.32,141.27,33.5050287]
[1745113125347,7.5050287,141.31,141.26,7.5680287]
[1745113125753,7.07714083,141.3,141.26,7.5680287]
[1745113126248,7.5050287,141.28,141.26,0.063]
[1745113126647,7.5050287,141.29,141.26,0.063]
[1745113128371,7.07814269,141.28,141.26,0.063]
[1745113128962,14.58317139,141.28,141.26,0.063]
[1745113129155,7.5050287,141.27,141.26,0.063]
[1745113130874,14.58367243,141.27,141.26,0.063]
[1745113135067,33.23332129,141.27,141.26,0.063]
[1745113135254,34.86902129,141.27,141.26,0.063]
[1745113135461,8.71434373,141.27,141.26,0.063]
[1745113135665,16.21937243,141.27,141.26,0.063]
[1745113137882,14.58367243,141.27,141.26,0.063]
[1745113141872,18.64964886,141.26,141.24,0.063]
[1745113142072,55.07437756,141.25,141.23,0.063]
[1745113142267,7.5050287,141.24,141.23,0.063]
[1745113142576,7.5050287,141.25,141.23,0.063]
[1745113142772,24.77525305,141.27,141.23,0.063]
[1745113142773,7.07864373,141.27,141.23,0.063]
[1745113143270,7.5050287,141.24,141.23,0.063]
[1745113143459,26.15467756,141.24,141.23,0.063]
[1745113143661,13.5323287,141.23,141.22,0.063]
[1745113144266,20.61297728,141.23,141.22,0.063]
[1745113144479,103.01297728,141.23,141.22,0.063]
[1745113147174,96.98567728,141.23,141.22,0.063]
[1745113149380,115.63532614,141.23,141.22,0.063]
[1745113149587,47.29532614,141.23,141.22,1e-08]
[1745113149785,7.07914483,141.26,141.22,1e-08]
[1745113150079,14.58417353,141.26,141.22,1e-08]
[1745113150666,7.07914483,141.26,141.22,1e-08]
[1745113150876,14.58417353,141.26,141.22,1e-08]
[1745113151466,7.5050287,141.27,141.22,7.50502871]
[1745113151769,26.15467756,141.27,141.22,7.50502871]
[1745113151969,7.5050287,141.26,141.22,1e-08]
[1745113152171,7.5050287,141.23,141.22,1e-08]
[1745113152380,7.07832837,141.28,141.22,1e-08]
[1745113152571,7.5050287,141.3,141.25,7.5050287]
[1745113152768,262.8108,141.34,141.28,7.5050287]
[1745113152769,14.61083525,141.33,141.28,7.5050287]
[1745113152969,14.61082415,141.33,141.28,7.5050287]
[1745113153169,7.5050287,141.3,141.25,7.5050287]
[1745113153370,7.5050287,141.29,141.24,7.5050287]
[1745113153588,7.5050287,141.29,141.23,34.69706771]
[1745113153883,7.5050287,141.26,141.23,1.6166]
[1745113154380,7.5050287,141.32,141.25,7.5050287]
[1745113154573,7.5050287,141.32,141.27,7.5050287]
[1745113154978,14.58133883,141.32,141.27,7.5050287]
[1745113155478,0.03,141.33,141.29,7.5050287]
[1745113155683,0.03,141.33,141.31,7.5050287]
[1745113155876,0.03,141.33,141.3,9.1216287]
[1745113156188,7.5050287,141.32,141.26,42.20063873]
[1745113156367,7.5050287,141.31,141.26,42.20063873]
[1745113157289,18.8176299,141.32,141.26,46.43662441]
[1745113157478,11.74101438,141.32,141.26,46.43662441]
[1745113157673,11.74101438,141.29,141.22,6.48010001]
[1745113157890,11.74101438,141.25,141.22,1e-08]
[1745113158379,11.74101438,141.26,141.22,1e-08]
[1745113158572,11.74101438,141.26,141.22,7.08114824]
[1745113158774,0.03,141.33,141.25,37.74101438]
[1745113158977,0.03,141.33,141.28,13.35351438]
[1745113159390,11.77101438,141.33,141.28,13.35351438]
[1745113159596,11.74101438,141.32,141.28,1.6125]
[1745113159888,11.74101438,141.31,141.28,1.6125]
[1745113160891,11.74101438,141.3,141.25,37.74101438]
[1745113161098,11.74101438,141.32,141.27,18.81965811]
[1745113161783,18.81717216,141.32,141.27,18.81965811]
[1745113162192,18.81717216,141.32,141.27,11.74101438]
[1745113162794,11.74101438,141.31,141.26,18.82001727]
[1745113164599,11.74101438,141.3,141.25,26.0]
[1745113164889,11.74101438,141.28,141.24,1.6125]
[1745113165090,11.74101438,141.25,141.22,1e-08]
[1745113165292,11.74101438,141.26,141.22,1e-08]
[1745113165874,18.82002789,141.27,141.22,1e-08]
[1745113166070,11.74101438,141.29,141.24,11.74101438]
[1745113166298,11.74101438,141.3,141.24,11.74101438]
[1745113167272,11.74101438,141.28,141.23,44.82116414]
[1745113167470,11.74101438,141.27,141.23,33.0806395]
[1745113167693,11.74101438,141.28,141.23,33.0806395]
[1745113167895,11.74101438,141.28,141.23,44.82165388]
[1745113168375,11.74101438,141.28,141.23,37.74101438]
[1745113168571,11.74101438,141.28,141.23,26.0]
[1745113168787,11.74101438,141.28,141.23,33.08057228]
[1745113169475,18.81940853,141.28,141.23,26.0]
[1745113169688,18.81940853,141.28,141.23,33.08056852]
[1745113169892,18.81940853,141.28,141.23,44.8215829]
[1745113170097,11.74101438,141.29,141.24,11.74101438]
[1745113170481,11.74101438,141.3,141.24,11.74101438]
[1745113170675,14.06,141.31,141.24,11.74101438]
[1745113170881,11.74101438,141.31,141.26,11.74101438]
[1745113171180,11.74101438,141.31,141.23,51.73021738]
[1745113171181,11.74101438,141.28,141.23,33.08056852]
[1745113171385,11.74101438,141.28,141.23,44.8215829]
[1745113172096,18.81867391,141.29,141.23,44.8215829]
[1745113172298,11.74101438,141.28,141.23,44.8215829]
[1745113172685,18.8191864,141.28,141.23,44.8215829]
[1745113173005,11.74101438,141.28,141.23,44.8215829]
[1745113173508,18.81925062,141.28,141.23,26.0]
[1745113173803,7.10564979,141.33,141.27,13.38211438]
[1745113173982,18.84666417,141.33,141.28,11.74101438]
[1745113174175,7.10564979,141.33,141.28,11.74101438]
[1745113174380,0.03,141.33,141.28,11.74101438]
[1745113174581,11.77101438,141.33,141.28,11.74101438]
[1745113174795,0.03,141.33,141.29,11.74101438]
[1745113174999,0.03,141.33,141.3,11.74101438]
[1745113175299,0.03,141.33,141.31,11.74101438]
[1745113175680,0.03,141.33,141.28,26.0]
[1745113175886,7.10587252,141.33,141.28,37.74101438]
[1745113176185,7.10587252,141.33,141.28,26.0]
[1745113176395,7.10587252,141.33,141.28,37.74101438]
[1745113176901,11.77101438,141.33,141.28,37.74101438]
[1745113177393,11.74101438,141.31,141.26,26.0]
[1745113177701,11.74101438,141.3,141.26,26.0]
[1745113177904,11.74101438,141.32,141.27,11.74101438]
[1745113178284,11.74101438,141.32,141.26,26.0]
[1745113178483,11.74101438,141.32,141.27,11.74101438]
[1745113178801,18.81765439,141.31,141.26,26.0]
[1745113179299,18.81733754,141.32,141.26,44.82004677]
[1745113179502,18.81733754,141.32,141.27,11.74101438]
[1745113180001,7.07632316,141.32,141.26,44.82004677]
[1745113180212,18.81733754,141.32,141.27,11.74101438]
[1745113181312,18.81733754,141.32,141.26,44.82004677]
[1745113182004,7.07632316,141.32,141.26,44.82004677]
[1745113182185,11.74101438,141.31,141.26,44.82004677]
[1745113182604,18.81770352,141.31,141.26,44.82004677]
[1745113183085,11.74101438,141.3,141.25,1.5829]
[1745113183717,11.74101438,141.29,141.25,1.5829]
[1745113183896,11.74101438,141.28,141.25,1.5829]
[1745113184203,11.74101438,141.29,141.25,1.5829]
[1745113185318,18.81892368,141.29,141.25,1.5829]
[1745113185499,11.74101438,141.28,141.23,11.74101438]
[1745113186311,11.74101438,141.28,141.23,18.8215597]
[1745113187520,88.9987,141.32,141.26,37.74101438]
[1745113187693,11.74101438,141.3,141.26,26.0]
[1745113188096,11.74101438,141.29,141.26,26.0]
[1745113188516,6.356,141.32,141.26,26.0]
[1745113188693,11.74101438,141.28,141.23,37.74101438]
[1745113188901,11.74101438,141.29,141.23,37.74101438]
[1745113189202,11.74101438,141.29,141.24,11.74101438]
[1745113189625,18.81838653,141.3,141.24,18.82073338]
[1745113189797,11.74101438,141.29,141.24,33.079719]
[1745113190115,11.74101438,141.29,141.24,32.579719]
[1745113190626,11.74101438,141.29,141.24,26.0]
[1745113190833,11.74101438,141.29,141.24,37.74101438]
[1745113191198,11.74101438,141.29,141.24,26.0]
[1745113191414,11.74101438,141.29,141.24,44.82111228]
[1745113191598,0.03,141.33,141.27,11.74101438]
[1745113191906,11.74101438,141.32,141.27,11.74101438]
[1745113192217,11.74101438,141.32,141.26,11.74101438]
[1745113192398,11.74101438,141.31,141.26,11.74101438]
[1745113192796,11.74101438,141.31,141.26,18.81982021]
[1745113193109,18.81767627,141.31,141.26,18.81982021]
[1745113193805,18.81767627,141.31,141.25,1.5177]
[1745113193806,11.74101438,141.28,141.25,1.5177]
[1745113194006,11.74101438,141.31,141.26,11.74101438]
[1745113194219,11.74101438,141.32,141.26,11.74101438]
[1745113194601,11.74101438,141.31,141.26,11.74101438]
[1745113194806,11.74101438,141.31,141.26,18.81993124]
[1745113195002,18.81774947,141.31,141.26,18.81993124]
[1745113195400,11.74101438,141.3,141.25,20.33816836]
[1745113195598,11.74101438,141.29,141.25,1.5177]
[1745113196024,11.74101438,141.3,141.25,1.5177]
[1745113196326,11.74101438,141.29,141.25,1.5177]
[1745113196623,11.74101438,141.29,141.24,44.82103147]
[1745113197105,18.8188026,141.29,141.24,44.82103147]
[1745113197398,18.8188026,141.29,141.24,44.82116044]
[1745113197814,18.81834388,141.3,141.24,44.82116044]
[1745113198905,18.81834388,141.3,141.25,18.82050734]
[1745113199222,7.07613925,141.32,141.25,18.82050734]
[1745113199428,18.81715363,141.32,141.26,11.74101438]
[1745113199818,11.74101438,141.31,141.25,18.82050734]
[1745113200216,11.74101438,141.3,141.24,33.07998867]
[1745113200419,11.74101438,141.29,141.24,26.0]
[1745113200616,11.74101438,141.28,141.24,26.0]
[1745113201115,11.74101438,141.25,141.22,1e-08]
[1745113201314,27.31073855,141.28,141.22,1e-08]
[1745113201643,11.74101438,141.26,141.22,1e-08]
[1745113202304,11.74101438,141.25,141.22,1e-08]
[1745113202938,18.82109393,141.25,141.22,1e-08]
[1745113203523,14.2,141.29,141.22,11.74101439]
[1745113203829,25.94101438,141.29,141.23,37.74101438]
[1745113204007,14.2,141.29,141.23,37.74101438]
[1745113204209,11.74101438,141.28,141.23,37.74101438]
[1745113204741,33.01880454,141.29,141.23,44.8213165]
[1745113205228,11.74101438,141.3,141.25,11.74101438]
[1745113205414,11.74101438,141.31,141.25,11.74101438]
[1745113205614,11.74101438,141.3,141.25,11.74101438]
[1745113205816,11.74101438,141.3,141.24,11.74101438]
[1745113206418,11.74101438,141.3,141.25,11.74101438]
[1745113208234,18.81828088,141.3,141.24,11.74101438]
[1745113208417,11.74101438,141.28,141.23,44.8213165]
[1745113209435,18.8188082,141.29,141.24,11.74101438]
[1745113209834,11.74101438,141.28,141.23,33.08030212]
[1745113210026,11.74101438,141.27,141.23,26.0]
[1745113210227,11.74101438,141.27,141.22,18.82200534]
[1745113210920,18.81990373,141.27,141.22,18.82200534]
[1745113211536,18.81990373,141.27,141.22,11.74101439]
[1745113211735,11.74101438,141.25,141.22,1e-08]
[1745113211923,6.2423,141.27,141.22,11.74101439]
[1745113212117,11.74101438,141.27,141.22,1e-08]
[1745113212318,11.74101438,141.27,141.22,11.74101439]
[1745113212525,18.81932048,141.28,141.23,11.74101438]
[1745113212925,18.82015921,141.26,141.22,1e-08]
[1745113213337,11.74101438,141.25,141.22,1e-08]
[1745113213536,11.74101438,141.24,141.22,1e-08]
[1745113213736,11.74101438,141.25,141.22,1e-08]
[1745113215449,18.82085962,141.25,141.22,1e-08]
[1745113217045,11.74101438,141.26,141.22,1e-08]
[1745113217225,18.81965811,141.27,141.22,1e-08]
[1745113217424,18.01331438,141.31,141.26,11.74101438]
[1745113217619,11.74101438,141.28,141.24,26.0]
[1745113218128,11.74101438,141.29,141.24,26.0]
[1745113218333,11.74101438,141.29,141.24,37.74101438]
[1745113218524,11.74101438,141.28,141.24,26.0]
[1745113218941,18.81908677,141.29,141.24,26.0]
[1745113219725,11.74101438,141.28,141.24,26.0]
[1745113219950,11.74101438,141.27,141.22,1e-08]
[1745113220153,11.74101438,141.26,141.22,1e-08]
[1745113220344,11.74101438,141.27,141.22,1e-08]
[1745113220648,89.47732973,141.3,141.24,11.74101438]
[1745113220847,11.74101438,141.29,141.24,11.74101438]
[1745113221152,18.81915707,141.28,141.22,11.74101439]
[1745113221842,11.74101438,141.27,141.22,1e-08]
[1745113222050,11.74101438,141.25,141.22,1e-08]
[1745113222227,11.74101438,141.24,141.22,1e-08]
[1745113223547,18.82125761,141.24,141.22,1e-08]
[1745113224050,11.74101438,141.23,141.22,1e-08]
[1745113224342,18.82125761,141.24,141.22,1e-08]
[1745113224551,11.74101438,141.23,141.22,1e-08]
[1745113225636,18.82166296,141.23,141.22,1e-08]
[1745113225840,37.47131182,141.23,141.22,1e-08]
[1745113228536,44.64964886,141.21,141.19,0.063]
[1745113228743,105.88202876,141.2,141.19,0.063]
[1745113229450,101.22316735,141.2,141.19,0.063]
[1745113229642,18.82316735,141.2,141.19,0.063]
[1745113229842,18.82278155,141.21,141.19,0.063]
[1745113230152,11.74101438,141.2,141.19,0.063]
[1745113231145,30.39066324,141.2,141.19,0.063]
[1745113231541,18.82316735,141.2,141.19,0.063]
[1745113240859,11.74101438,141.29,141.19,37.80401438]
[1745113241056,0.03,141.26,141.23,11.74101438]
[1745113241251,0.03,141.26,141.19,0.063]
[1745113241252,11.74101438,141.24,141.19,0.063]
[1745113241460,0.03,141.26,141.21,11.74101438]
[1745113241639,0.03,141.26,141.22,11.74101438]
[1745113241841,0.03,141.26,141.25,13.24351438]
[1745113242162,0.03,141.26,141.25,1.5025]
[1745113243055,0.03,141.26,141.22,33.08095237]
[1745113243255,0.03,141.26,141.22,44.82196675]
[1745113243450,0.03,141.26,141.23,11.74101438]
[1745113243860,0.03,141.26,141.22,33.08095237]
[1745113244059,0.03,141.26,141.23,11.74101438]
[1745113244360,0.03,141.26,141.23,18.82129074]
[1745113245177,0.03,141.26,141.25,11.74101438]
[1745113246067,0.03,141.26,141.24,11.74101438]
[1745113246383,0.03,141.26,141.23,7.08027636]
[1745113246672,0.03,141.26,141.23,18.82129074]
[1745113247046,0.03,141.26,141.24,11.74101438]
[1745113247243,0.03,141.31,141.28,26.0]
[1745113247447,0.03,141.31,141.3,11.74101438]
[1745113248753,0.03,141.31,141.25,8.2625]
[1745113248971,0.03,141.31,141.27,11.74101438]
[1745113249153,0.03,141.31,141.28,11.74101438]
[1745113249354,0.03,141.31,141.27,11.74101438]
[1745113250562,11.74101438,141.3,141.25,13.37651438]
[1745113250960,11.77101438,141.31,141.25,13.37651438]
[1745113251359,18.84798672,141.31,141.25,20.45612205]
[1745113251869,18.84798672,141.31,141.26,11.74101438]
[1745113252066,0.03,141.31,141.26,11.74101438]
[1745113252376,0.03,141.31,141.29,11.74101438]
[1745113252671,0.03,141.31,141.28,11.74101438]
[1745113253069,0.03,141.31,141.27,11.74101438]
[1745113253265,0.03,141.31,141.28,11.74101438]
[1745113253975,0.03,141.31,141.28,18.81881949]
[1745113258158,0.03,141.31,141.27,37.74101438]
[1745113258354,11.74101438,141.3,141.25,1.6355]
[1745113258571,11.74101438,141.3,141.25,13.37651438]
[1745113258765,11.74101438,141.29,141.24,18.8209948]
[1745113259061,11.74101438,141.3,141.24,18.8209948]
[1745113259673,18.81842739,141.3,141.24,18.8209948]
[1745113262074,0.03,141.31,141.28,11.74101438]
[1745113262280,0.03,141.31,141.29,11.74101438]
[1745113262476,0.03,141.31,141.28,11.74101438]
[1745113262675,0.03,141.31,141.27,11.74101438]
[1745113263268,0.03,141.31,141.27,18.81954041]
[1745113265599,18.84682216,141.33,141.27,18.81954041]
[1745113265600,0.03,141.33,141.31,20.0]
[1745113265761,0.03,141.4,141.35,1.538]
[1745113266080,0.03,141.43,141.39,26.0]
[1745113266289,7.10100177,141.43,141.39,11.74101438]
[1745113266587,0.03,141.43,141.39,11.74101438]
[1745113266884,0.03,141.43,141.4,11.74101438]
[1745113267590,0.03,141.43,141.4,18.81315016]
[1745113268087,0.03,141.43,141.4,44.81315016]
[1745113268895,1e-08,141.41,141.4,37.46279902]
[1745113269190,0.03,141.43,141.42,26.0]
[1745113269384,0.03,141.43,141.42,37.74101438]
[1745113269875,0.03,141.43,141.42,44.81215]
[1745113276584,1e-08,141.43,141.42,65.11709886]
[1745113276782,0.03,141.45,141.43,18.64964886]
[1745113277005,0.03,141.45,141.44,11.74101438]
[1745113277207,0.03,141.45,141.42,8.72643562]
[1745113277378,0.03,141.45,141.44,11.74101438]
[1745113277571,0.03,141.45,141.44,23.48202876]
[1745113278281,0.03,141.45,141.44,30.5521645]
[1745113278607,0.03,141.45,141.44,18.81115012]
[1745113279100,1e-08,141.45,141.44,49.20181336]
[1745113279273,1e-08,141.46,141.44,63.80181336]
[1745113279478,0.03,141.49,141.48,26.0]
[1745113279683,0.03,141.49,141.48,56.39066324]
[1745113279895,1e-08,141.49,141.48,56.39066324]
[1745113280292,13.15627544,141.58,141.48,56.39066324]
[1745113280293,6.0928,141.58,141.48,65.06050007]
[1745113280589,11.74101438,141.57,141.52,37.74101438]
[1745113280775,6.0928,141.58,141.53,11.74101438]
[1745113280974,17.83381438,141.58,141.53,11.74101438]
[1745113281174,11.74101438,141.56,141.52,26.0]
[1745113281470,11.74101438,141.57,141.52,37.74101438]
[1745113282492,11.74101438,141.57,141.52,26.0]
[1745113282697,11.74101438,141.55,141.5,37.74101438]
[1745113283573,18.80533096,141.56,141.51,11.74101438]
[1745113283779,18.80533096,141.56,141.5,37.74101438]
[1745113283997,11.74101438,141.51,141.45,16.1483]
[1745113284192,11.74101438,141.53,141.48,11.74101438]
[1745113284480,21.07204579,141.54,141.48,11.74101438]
[1745113284794,11.74101438,141.5,141.45,14.58]
[1745113285095,11.74101438,141.53,141.48,11.74101438]
[1745113285301,11.74101438,141.53,141.47,11.74101438]
[1745113285596,2.26583179,141.54,141.51,11.74101438]
[1745113285773,2.26583179,141.54,141.52,11.74101438]
[1745113285981,2.26583179,141.54,141.53,11.74101438]
[1745113286707,2.26583179,141.54,141.53,18.80665417]
[1745113286880,2.26583179,141.54,141.53,26.0]
[1745113287084,2.26583179,141.54,141.51,37.74101438]
[1745113287289,2.26583179,141.54,141.53,37.74101438]
[1745113287589,2.26583179,141.54,141.53,26.0]
[1745113287898,2.26583179,141.54,141.53,37.74101438]
[1745113288393,2.26583179,141.54,141.51,37.74101438]
[1745113288798,2.26583179,141.54,141.51,44.80757478]
[1745113289683,2.26583179,141.54,141.51,37.74101438]
[1745113290179,14.00684617,141.54,141.49,26.0]
[1745113290382,21.07221817,141.54,141.49,11.74101438]
[1745113290579,2.26583179,141.54,141.5,11.74101438]
[1745113290779,2.26583179,141.54,141.53,11.74101438]
[1745113290994,2.26583179,141.54,141.5,7.06676006]
[1745113291201,2.26583179,141.54,141.52,11.74101438]
[1745113291783,2.26583179,141.54,141.5,7.06676006]
[1745113291784,2.26583179,141.54,141.51,11.74101438]
[1745113292402,21.0722524,141.54,141.48,37.74101438]
[1745113292696,18.80865166,141.49,141.44,11.74101438]
[1745113293013,11.74101438,141.48,141.43,11.74101438]
[1745113293194,11.74101438,141.47,141.42,11.74101438]
[1745113293389,7.06763728,141.49,141.45,11.74101438]
[1745113293583,7.06763728,141.49,141.44,11.74101438]
[1745113293783,18.80865166,141.49,141.44,11.74101438]
[1745113294503,18.80865166,141.49,141.43,37.74101438]
[1745113295214,11.74101438,141.46,141.41,37.74101438]
[1745113295530,11.74101438,141.46,141.41,11.74101438]
[1745113295811,11.74101438,141.47,141.41,11.74101438]
[1745113296119,11.74101438,141.46,141.41,11.74101438]
[1745113296409,18.81029277,141.46,141.41,11.74101438]
[1745113296584,18.81029277,141.46,141.41,37.74101438]
[1745113296795,7.06927839,141.46,141.42,11.74101438]
[1745113300101,11.74101438,141.46,141.41,37.74101438]
[1745113300300,11.74101438,141.46,141.38,0.063]
[1745113300301,18.64964886,141.41,141.38,0.063]
[1745113300508,11.74101438,141.39,141.38,0.063]
[1745113302310,18.81365035,141.39,141.38,0.063]
[1745113303123,11.74101438,141.37,141.36,0.063]
[1745113303422,30.39066324,141.37,141.36,0.063]
[1745113303721,30.39066324,141.37,141.36,1e-08]
[1745113304111,36.44916324,141.37,141.36,1e-08]
[1745113304311,43.52279979,141.37,141.36,1e-08]
[1745113304709,7.07363655,141.37,141.36,1e-08]
[1745113304909,11.74101438,141.39,141.36,1e-08]
[1745113305217,11.74101438,141.38,141.36,1e-08]
[1745113306707,18.81446666,141.38,141.36,1e-08]
[1745113306904,18.81321851,141.4,141.36,1e-08]
[1745113307113,25.83334563,141.4,141.36,1e-08]
[1745113308617,7.07220413,141.4,141.36,18.76114151]
[1745113308811,25.83240167,141.42,141.37,18.7611415]
[1745113309013,261.0811415,141.46,141.4,18.7611415]
[1745113309207,18.7611415,141.46,141.41,18.7611415]
[1745113309410,7.06929474,141.46,141.42,18.7611415]
[1745113309604,18.7611415,141.44,141.39,18.7611415]
[1745113310125,18.7611415,141.41,141.37,26.0]
[1745113310330,18.7611415,141.43,141.38,18.7611415]
[1745113310536,25.83082157,141.45,141.4,18.7611415]
[1745113311029,25.83029897,141.46,141.41,18.7611415]
[1745113311225,18.7611415,141.45,141.4,18.7611415]
[1745113311432,18.7611415,141.44,141.39,18.7611415]
[1745113311725,18.7611415,141.45,141.4,18.7611415]
[1745113312311,25.86029897,141.46,141.41,18.7611415]
[1745113313130,0.03,141.46,141.42,18.7611415]
[1745113314230,7.09919066,141.46,141.42,18.7611415]
[1745113314432,18.7611415,141.45,141.39,25.83366765]
[1745113314625,25.86033216,141.46,141.4,18.7611415]
[1745113314930,0.03,141.46,141.41,18.7611415]
[1745113315133,0.03,141.46,141.42,18.7611415]
[1745113315441,0.03,141.46,141.41,18.7611415]
[1745113315615,0.03,141.46,141.4,18.7611415]
[1745113315616,18.7611415,141.45,141.4,18.7611415]
[1745113315815,0.03,141.46,141.39,7.07252615]
[1745113315816,18.7611415,141.44,141.39,25.83366765]
[1745113316026,18.7611415,141.44,141.4,26.0]
[1745113316223,25.83130329,141.44,141.4,26.0]
[1745113316530,18.7611415,141.43,141.4,26.0]
[1745113316932,18.7911415,141.46,141.4,44.7611415]
[1745113317121,18.7611415,141.45,141.4,44.7611415]
[1745113317827,18.7611415,141.45,141.4,51.83325853]
[1745113318036,0.03,141.46,141.41,18.7611415]
[1745113318231,0.03,141.46,141.42,18.7611415]
[1745113318421,0.03,141.46,141.42,25.83200052]
[1745113318816,0.03,141.46,141.43,18.7611415]
[1745113319534,0.03,141.46,141.42,25.83200052]
[1745113320731,18.7611415,141.45,141.4,18.7611415]
[1745113320935,18.7911415,141.46,141.4,18.7611415]
[1745113321139,18.7611415,141.45,141.4,18.7611415]
[1745113321440,18.7611415,141.45,141.39,44.7611415]
[1745113321825,18.7611415,141.43,141.39,26.0]
[1745113322737,25.83179622,141.43,141.39,26.0]
[1745113323333,25.83145084,141.44,141.39,26.0]
[1745113324017,25.83145084,141.44,141.39,44.7611415]
[1745113324343,18.7611415,141.41,141.37,26.0]
[1745113324932,25.83289966,141.41,141.37,26.0]
[1745113325529,25.83239806,141.42,141.37,26.0]
[1745113326042,25.83239806,141.42,141.37,44.7611415]
[1745113328125,18.7611415,141.41,141.37,26.0]
[1745113328326,18.7611415,141.41,141.36,1.62940001]
[1745113328941,25.83325224,141.41,141.36,1.62940001]
[1745113329138,18.79703851,141.41,141.36,1.62940001]
[1745113329444,14.68,141.44,141.39,11.72492777]
[1745113329627,26.40492777,141.44,141.38,11.72492777]
[1745113329827,21.75014377,141.44,141.36,13.35432778]
[1745113330027,11.72492777,141.4,141.36,1e-08]
[1745113330626,11.72492777,141.38,141.36,1e-08]
[1745113331039,7.07363655,141.37,141.36,1e-08]
[1745113331424,18.798208,141.38,141.36,1e-08]
[1745113333243,11.72492777,141.37,141.36,1e-08]
[1745113333632,18.798208,141.38,141.36,1e-08]
[1745113334928,7.07269028,141.39,141.36,1e-08]
[1745113335843,18.79761805,141.39,141.36,1e-08]
[1745113336227,11.72492777,141.37,141.36,1e-08]
[1745113336830,42.0995044,141.37,141.36,1e-08]
[1745113337022,18.64964886,141.35,141.3,0.063]
[1745113337228,11.72492777,141.31,141.3,0.063]
[1745113337627,14.68,141.34,141.3,0.063]
[1745113337628,11.72492777,141.32,141.3,0.063]
[1745113337948,11.72492777,141.31,141.3,0.063]
[1745113338132,18.80156778,141.31,141.3,0.063]
[1745113338544,18.80124001,141.32,141.3,0.063]
[1745113338849,7.07631224,141.32,141.3,0.063]
[1745113339658,11.72492777,141.31,141.3,0.063]
[1745113340933,30.37457663,141.31,141.3,0.063]
[1745113341671,37.45121664,141.31,141.3,0.063]
[1745113341846,18.80156778,141.31,141.3,0.063]
[1745113342953,7.07664001,141.31,141.3,0.063]
[1745113343157,18.80156778,141.31,141.3,0.063]
[1745113354553,37.45121664,141.31,141.3,0.063]
[1745113354949,24.78514886,141.3,141.27,0.063]
[1745113355155,42.0995044,141.28,141.27,0.063]
[1745113355862,68.0995044,141.28,141.24,0.063]
[1745113356053,11.72492777,141.25,141.24,0.063]
[1745113356251,30.37457663,141.25,141.24,0.063]
[1745113356455,30.37457663,141.25,141.24,1e-08]
[1745113356668,30.37457663,141.25,141.21,0.063]
[1745113356850,11.72492777,141.22,141.21,0.063]
[1745113357448,7.08064858,141.23,141.21,0.063]
[1745113357648,96.94,141.24,141.21,0.063]
[1745113357848,108.66492777,141.24,141.21,0.063]
[1745113359870,11.72492777,141.26,141.21,11.78792777]
[1745113360067,11.72492777,141.27,141.22,11.72492777]
[1745113361570,11.72492777,141.28,141.23,11.72492777]
[1745113361875,18.80256949,141.29,141.23,26.0]
[1745113362056,11.72492777,141.28,141.23,37.72492777]
[1745113362858,14.54,141.3,141.24,18.80507503]
[1745113363057,11.72492777,141.29,141.24,18.80507503]
[1745113363662,21.61745301,141.3,141.24,18.80507503]
[1745113363870,11.72492777,141.29,141.24,18.80507503]
[1745113364756,11.72492777,141.29,141.25,11.72492777]
[1745113364958,33.34238078,141.3,141.25,11.72492777]
[1745113365270,33.34238078,141.3,141.24,7.08014726]
[1745113365271,11.72492777,141.27,141.23,26.0]
[1745113365666,11.72492777,141.28,141.23,44.80542863]
[1745113368175,11.72492777,141.25,141.21,1.7262]
[1745113368355,7.07826486,141.28,141.22,11.72492777]
[1745113368553,11.72492777,141.27,141.22,11.72492777]
[1745113368754,11.72492777,141.26,141.21,20.53273026]
[1745113369874,18.8039708,141.27,141.22,11.72492777]
[1745113370374,18.8039708,141.27,141.22,18.80601796]
[1745113371061,7.07904303,141.27,141.22,18.80601796]
[1745113371257,18.8039708,141.27,141.22,18.80601796]